[Event "*** Titled Tuesday Blitz"]
[Site "Chess.com"]
[Date "2019.01.01"]
[Round "2"]
[White "Iyael"]
[Black "Abdodi"]
[Result "0-1"]
[WhiteElo "2157"]
[BlackElo "2194"]
[TimeControl "180+2"]
[EndTime "13:20:49 PST"]
[Termination "Abdodi won by checkmate"]

1. e4 {[%clk 0:02:59.1]} 1... c6 {[%clk 0:03:00.6]} 2. d4 {[%clk 0:02:59.1]}
2... d5 {[%clk 0:03:02.5]} 3. exd5 {[%clk 0:02:59.6]} 3... cxd5 {[%clk
0:03:03.4]} 4. Bd3 {[%clk 0:03:00.6]} 4... Nc6 {[%clk 0:03:03.7]} 5. c3 {[%clk
0:03:01.6]} 5... Qc7 {[%clk 0:03:02.9]} 6. Nf3 {[%clk 0:02:58.8]} 6... Bg4
{[%clk 0:03:03.1]} 7. O-O {[%clk 0:02:58.9]} 7... Nf6 {[%clk 0:03:02.7]} 8. Nbd2
{[%clk 0:02:59]} 8... e6 {[%clk 0:03:03.4]} 9. Re1 {[%clk 0:02:57.2]} 9... Bd6
{[%clk 0:03:04.3]} 10. Qb3 {[%clk 0:02:56.5]} 10... O-O {[%clk 0:03:03.5]} 11.
a4 {[%clk 0:02:45.3]} 11... Na5 {[%clk 0:03:01.5]} 12. Qc2 {[%clk 0:02:45.2]}
12... Nc4 {[%clk 0:02:57.7]} 13. Bxc4 {[%clk 0:02:37.5]} 13... dxc4 {[%clk
0:02:59.6]} 14. Ne5 {[%clk 0:02:38.6]} 14... Bf5 {[%clk 0:02:56.1]} 15. Qd1
{[%clk 0:02:39.2]} 15... Bd3 {[%clk 0:02:39.8]} 16. h3 {[%clk 0:02:35.1]} 16...
Bxe5 {[%clk 0:02:36.6]} 17. Rxe5 {[%clk 0:02:35.3]} 17... Nd7 {[%clk 0:02:35.6]}
18. Re3 {[%clk 0:02:35.4]} 18... e5 {[%clk 0:02:34.4]} 19. dxe5 {[%clk
0:02:32.6]} 19... Nxe5 {[%clk 0:02:35]} 20. Nf1 {[%clk 0:02:27.8]} 20... Bg6
{[%clk 0:02:31.9]} 21. Ng3 {[%clk 0:02:20.2]} 21... Rad8 {[%clk 0:02:31.2]} 22.
Qe2 {[%clk 0:02:17.3]} 22... Bd3 {[%clk 0:02:27.7]} 23. Qh5 {[%clk 0:02:14.4]}
23... Ng6 {[%clk 0:02:22.4]} 24. Bd2 {[%clk 0:02:11.4]} 24... Rfe8 {[%clk
0:02:21.1]} 25. Rxe8+ {[%clk 0:02:09.7]} 25... Rxe8 {[%clk 0:02:20.9]} 26. Be3
{[%clk 0:02:11.1]} 26... a6 {[%clk 0:02:19.9]} 27. Qf3 {[%clk 0:02:09.5]} 27...
Ne5 {[%clk 0:02:15.5]} 28. Qf4 {[%clk 0:02:08.2]} 28... Qc6 {[%clk 0:02:00.9]}
29. a5 {[%clk 0:02:05.9]} 29... Ng6 {[%clk 0:02:00.7]} 30. Qg4 {[%clk
0:02:02.5]} 30... Qb5 {[%clk 0:01:46.6]} 31. Re1 {[%clk 0:01:57]} 31... Qxb2
{[%clk 0:01:41.4]} 32. Qd7 {[%clk 0:01:57.4]} 32... Qb5 {[%clk 0:01:25.7]} 33.
Qd4 {[%clk 0:01:53.1]} 33... Qe5 {[%clk 0:01:20.7]} 34. Qb6 {[%clk 0:01:49.1]}
34... Qb5 {[%clk 0:01:18.7]} 35. Qd4 {[%clk 0:01:45.1]} 35... Qxa5 {[%clk
0:01:13.7]} 36. h4 {[%clk 0:01:40.7]} 36... Qe5 {[%clk 0:01:12.5]} 37. Qb6
{[%clk 0:01:41.5]} 37... Nxh4 {[%clk 0:01:02.9]} 38. Bd2 {[%clk 0:01:42.3]}
38... Qb8 {[%clk 0:00:56.6]} 39. Rxe8+ {[%clk 0:01:41.1]} 39... Qxe8 {[%clk
0:00:58.5]} 40. Qxb7 {[%clk 0:01:41.8]} 40... h6 {[%clk 0:00:53.9]} 41. Qxa6
{[%clk 0:01:38.7]} 41... Qe5 {[%clk 0:00:37.8]} 42. Qc8+ {[%clk 0:01:37.3]}
42... Kh7 {[%clk 0:00:38]} 43. Qb7 {[%clk 0:01:38]} 43... Qe6 {[%clk 0:00:26.3]}
44. Qc7 {[%clk 0:01:34.7]} 44... Qd5 {[%clk 0:00:22]} 45. Qf4 {[%clk 0:01:33.5]}
45... Qxg2# {[%clk 0:00:21.3]} 0-1

[Event "*** Titled Tuesday Blitz"]
[Site "Chess.com"]
[Date "2019.01.01"]
[Round "2"]
[White "Qingdom"]
[Black "guillembaches"]
[Result "0-1"]
[WhiteElo "2192"]
[BlackElo "2334"]
[TimeControl "180+2"]
[EndTime "13:20:56 PST"]
[Termination "guillembaches won by checkmate"]

1. d4 {[%clk 0:03:01.9]} 1... Nf6 {[%clk 0:03:00.2]} 2. Bg5 {[%clk 0:03:02.8]}
2... e6 {[%clk 0:02:59]} 3. e4 {[%clk 0:03:03.2]} 3... h6 {[%clk 0:02:59.9]} 4.
Bxf6 {[%clk 0:03:03.9]} 4... Qxf6 {[%clk 0:03:01.8]} 5. c3 {[%clk 0:03:04.8]}
5... d6 {[%clk 0:03:01.3]} 6. Bd3 {[%clk 0:03:04.9]} 6... c6 {[%clk 0:02:57.7]}
7. Ne2 {[%clk 0:03:05]} 7... e5 {[%clk 0:02:58.5]} 8. O-O {[%clk 0:03:04.2]}
8... Qd8 {[%clk 0:02:55.7]} 9. Nd2 {[%clk 0:03:02]} 9... Nd7 {[%clk 0:02:55.6]}
10. f4 {[%clk 0:03:02.4]} 10... Be7 {[%clk 0:02:54.4]} 11. fxe5 {[%clk
0:02:55.9]} 11... dxe5 {[%clk 0:02:54.8]} 12. Nc4 {[%clk 0:02:53.1]} 12... O-O
{[%clk 0:02:52]} 13. dxe5 {[%clk 0:02:49]} 13... b5 {[%clk 0:02:48.2]} 14. Nd6
{[%clk 0:02:48.7]} 14... Nxe5 {[%clk 0:02:46.6]} 15. Nxc8 {[%clk 0:02:49.4]}
15... Rxc8 {[%clk 0:02:41.3]} 16. Bc2 {[%clk 0:02:50.4]} 16... Qb6+ {[%clk
0:02:32.9]} 17. Kh1 {[%clk 0:02:51.3]} 17... Ng4 {[%clk 0:02:33.8]} 18. Nd4
{[%clk 0:02:43.7]} 18... Ne3 {[%clk 0:02:29.2]} 19. Qe2 {[%clk 0:02:44.6]} 19...
Nxf1 {[%clk 0:02:29.5]} 20. Rxf1 {[%clk 0:02:45.5]} 20... Rce8 {[%clk
0:02:17.3]} 21. Qg4 {[%clk 0:02:45.9]} 21... c5 {[%clk 0:01:58.1]} 22. Nf5
{[%clk 0:02:32.4]} 22... Qg6 {[%clk 0:01:58.4]} 23. Qf3 {[%clk 0:02:28]} 23...
Qg5 {[%clk 0:01:45.8]} 24. h4 {[%clk 0:02:24.3]} 24... Qf6 {[%clk 0:01:44.4]}
25. Qg4 {[%clk 0:02:05.9]} 25... Kh8 {[%clk 0:01:36]} 26. Rf3 {[%clk 0:02:06]}
26... g6 {[%clk 0:01:29.7]} 27. Nxh6 {[%clk 0:02:01.2]} 27... Qxh4+ {[%clk
0:01:28.7]} 28. Qxh4 {[%clk 0:01:54.2]} 28... Bxh4 {[%clk 0:01:29.6]} 29. Nxf7+
{[%clk 0:01:53.8]} 29... Kg7 {[%clk 0:01:27.7]} 30. Nd6 {[%clk 0:01:54.3]} 30...
Rd8 {[%clk 0:01:17]} 31. Nxb5 {[%clk 0:01:45.7]} 31... Rd2 {[%clk 0:01:11.9]}
32. Bb3 {[%clk 0:01:43.7]} 32... Rxb2 {[%clk 0:01:01.6]} 33. Rxf8 {[%clk
0:01:40]} 33... Kxf8 {[%clk 0:01:02.1]} 34. Kh2 {[%clk 0:01:38.6]} 34... a5
{[%clk 0:00:59.8]} 35. Nc7 {[%clk 0:01:35.4]} 35... Bf6 {[%clk 0:00:54.9]} 36.
Ne6+ {[%clk 0:01:34.9]} 36... Ke7 {[%clk 0:00:55.7]} 37. Nxc5 {[%clk 0:01:36]}
37... Bxc3 {[%clk 0:00:55.2]} 38. Kg3 {[%clk 0:01:34.8]} 38... Kd6 {[%clk
0:00:52.8]} 39. Nd3 {[%clk 0:01:35.2]} 39... Be5+ {[%clk 0:00:49]} 40. Kf3
{[%clk 0:01:32]} 40... Rd2 {[%clk 0:00:48.7]} 41. Nxe5 {[%clk 0:01:03.5]} 41...
Kxe5 {[%clk 0:00:49.2]} 42. Bd5 {[%clk 0:01:04.6]} 42... a4 {[%clk 0:00:48.1]}
43. g3 {[%clk 0:01:02.9]} 43... a3 {[%clk 0:00:48.8]} 44. Kg4 {[%clk 0:01:02.8]}
44... Rd3 {[%clk 0:00:48.8]} 45. Kh4 {[%clk 0:01:02.6]} 45... Kf6 {[%clk
0:00:47.6]} 46. g4 {[%clk 0:01:02.3]} 46... g5+ {[%clk 0:00:47.2]} 47. Kh5
{[%clk 0:01:02.8]} 47... Rh3# {[%clk 0:00:48.3]} 0-1

[Event "*** Titled Tuesday Blitz"]
[Site "Chess.com"]
[Date "2019.01.01"]
[Round "2"]
[White "ajkom197"]
[Black "nOcHeaTiNgKiD"]
[Result "0-1"]
[WhiteElo "2422"]
[BlackElo "2427"]
[TimeControl "180+2"]
[EndTime "13:20:57 PST"]
[Termination "nOcHeaTiNgKiD won on time"]

1. c4 {[%clk 0:02:59.2]} 1... g6 {[%clk 0:02:58.9]} 2. g3 {[%clk 0:02:58.7]}
2... Bg7 {[%clk 0:02:59.4]} 3. Bg2 {[%clk 0:02:59.7]} 3... d6 {[%clk 0:02:59.3]}
4. Nc3 {[%clk 0:02:57.6]} 4... Nd7 {[%clk 0:02:57.2]} 5. e4 {[%clk 0:02:57]}
5... e5 {[%clk 0:02:51.5]} 6. Nge2 {[%clk 0:02:57]} 6... Ngf6 {[%clk 0:02:52.1]}
7. O-O {[%clk 0:02:56.9]} 7... O-O {[%clk 0:02:53.4]} 8. d3 {[%clk 0:02:53.7]}
8... a6 {[%clk 0:02:53.1]} 9. Rb1 {[%clk 0:02:53.8]} 9... c6 {[%clk 0:02:53.6]}
10. b4 {[%clk 0:02:54.3]} 10... b5 {[%clk 0:02:54.3]} 11. h3 {[%clk 0:02:50.3]}
11... Nb6 {[%clk 0:02:52.6]} 12. cxb5 {[%clk 0:02:29.8]} 12... axb5 {[%clk
0:02:52.9]} 13. Kh2 {[%clk 0:02:28.2]} 13... d5 {[%clk 0:02:36.2]} 14. f4 {[%clk
0:02:19.8]} 14... exf4 {[%clk 0:02:18.6]} 15. Nxf4 {[%clk 0:01:53.4]} 15... d4
{[%clk 0:02:06.7]} 16. Nce2 {[%clk 0:01:48.8]} 16... Rxa2 {[%clk 0:02:06.3]} 17.
Qb3 {[%clk 0:01:47.2]} 17... Ra4 {[%clk 0:01:53.1]} 18. e5 {[%clk 0:01:32.9]}
18... Nfd5 {[%clk 0:01:33.6]} 19. Nxd5 {[%clk 0:00:58.7]} 19... Nxd5 {[%clk
0:01:34]} 20. Bxd5 {[%clk 0:00:52.4]} 20... cxd5 {[%clk 0:01:34]} 21. Nxd4
{[%clk 0:00:47.5]} 21... Bxe5 {[%clk 0:01:32.7]} 22. Nc6 {[%clk 0:00:45.3]}
22... Qd7 {[%clk 0:01:29.2]} 23. Nxe5 {[%clk 0:00:14.2]} 23... Qxh3+ {[%clk
0:01:29.3]} 24. Kg1 {[%clk 0:00:15.6]} 24... Qxg3+ {[%clk 0:01:29.6]} 25. Kh1
{[%clk 0:00:17]} 25... Bh3 {[%clk 0:01:08.7]} 26. Rg1 {[%clk 0:00:11.3]} 26...
Qxe5 {[%clk 0:01:08.4]} 27. Bb2 {[%clk 0:00:09.1]} 27... Qh5 {[%clk 0:01:06.5]}
28. Rg3 {[%clk 0:00:03.7]} 28... Be6+ {[%clk 0:00:56.2]} 29. Kg1 {[%clk
0:00:04.3]} 29... d4 {[%clk 0:00:56.6]} 30. Qc2 {[%clk 0:00:04.4]} 30... Rxb4
{[%clk 0:00:55.8]} 31. Qf2 {[%clk 0:00:04]} 31... Bd5 {[%clk 0:00:48.4]} 0-1

[Event "*** Titled Tuesday Blitz"]
[Site "Chess.com"]
[Date "2019.01.01"]
[Round "2"]
[White "twitchTriniCupid"]
[Black "rikyshi"]
[Result "0-1"]
[WhiteElo "2264"]
[BlackElo "2190"]
[TimeControl "180+2"]
[EndTime "13:21:01 PST"]
[Termination "rikyshi won by resignation"]

1. d4 {[%clk 0:03:00]} 1... d5 {[%clk 0:03:00.5]} 2. c4 {[%clk 0:03:01.4]} 2...
c6 {[%clk 0:03:01]} 3. cxd5 {[%clk 0:03:01.9]} 3... cxd5 {[%clk 0:03:01.7]} 4.
Nc3 {[%clk 0:03:03.4]} 4... Nc6 {[%clk 0:03:01.2]} 5. Bf4 {[%clk 0:03:04.5]}
5... a6 {[%clk 0:03:01.6]} 6. e3 {[%clk 0:03:05.6]} 6... Bf5 {[%clk 0:03:01]} 7.
Qb3 {[%clk 0:02:56.2]} 7... e6 {[%clk 0:02:59.4]} 8. Qxb7 {[%clk 0:02:07]} 8...
Nb4 {[%clk 0:02:55.7]} 9. Bc7 {[%clk 0:01:49.9]} 9... Qc8 {[%clk 0:02:55.5]} 10.
Qb6 {[%clk 0:01:50.1]} 10... Be7 {[%clk 0:02:01]} 11. Rc1 {[%clk 0:01:36.9]}
11... Nf6 {[%clk 0:01:59.4]} 12. a3 {[%clk 0:01:35.3]} 12... Nd7 {[%clk
0:01:59.9]} 13. Qa5 {[%clk 0:01:01.5]} 13... Nc6 {[%clk 0:02:00.1]} 14. Qa4
{[%clk 0:00:58.8]} 14... Qxc7 {[%clk 0:01:59]} 15. Nxd5 {[%clk 0:00:54]} 15...
exd5 {[%clk 0:01:58.6]} 16. Rxc6 {[%clk 0:00:54.8]} 16... Qd8 {[%clk 0:01:48.9]}
17. g4 {[%clk 0:00:36.8]} 17... Bxg4 {[%clk 0:01:44.1]} 18. Bg2 {[%clk
0:00:36.4]} 18... Be6 {[%clk 0:01:44.9]} 19. Ne2 {[%clk 0:00:36.6]} 19... O-O
{[%clk 0:01:45.2]} 20. Nf4 {[%clk 0:00:34.8]} 20... Bh4 {[%clk 0:01:11.8]} 21.
O-O {[%clk 0:00:34.1]} 21... Re8 {[%clk 0:01:10.2]} 22. Rfc1 {[%clk 0:00:19.3]}
22... Qf6 {[%clk 0:01:08.3]} 23. Qc2 {[%clk 0:00:16.6]} 23... Rad8 {[%clk
0:00:52.1]} 24. Nxd5 {[%clk 0:00:17.1]} 24... Qh6 {[%clk 0:00:42.5]} 25. Nf4
{[%clk 0:00:17.3]} 25... Qg5 {[%clk 0:00:29.5]} 26. d5 {[%clk 0:00:16.9]} 26...
Bf5 {[%clk 0:00:26.4]} 27. Qe2 {[%clk 0:00:15.3]} 27... Ne5 {[%clk 0:00:26.6]}
28. Kh1 {[%clk 0:00:15.5]} 28... Nxc6 {[%clk 0:00:25.9]} 29. dxc6 {[%clk
0:00:17.4]} 29... Qxf4 {[%clk 0:00:23.4]} 30. exf4 {[%clk 0:00:17.4]} 30... Rxe2
{[%clk 0:00:24]} 31. c7 {[%clk 0:00:19.3]} 31... Rde8 {[%clk 0:00:23.1]} 0-1

[Event "*** Titled Tuesday Blitz"]
[Site "Chess.com"]
[Date "2019.01.01"]
[Round "2"]
[White "nitpicker"]
[Black "aRk_iN"]
[Result "1-0"]
[WhiteElo "2204"]
[BlackElo "2126"]
[TimeControl "180+2"]
[EndTime "13:21:03 PST"]
[Termination "nitpicker won by resignation"]

1. d4 {[%clk 0:03:01.9]} 1... d5 {[%clk 0:02:58.7]} 2. c4 {[%clk 0:03:00.5]}
2... c6 {[%clk 0:02:59.3]} 3. Nf3 {[%clk 0:03:00.7]} 3... Nf6 {[%clk 0:03:00]}
4. Nc3 {[%clk 0:03:00.6]} 4... dxc4 {[%clk 0:03:00.5]} 5. a4 {[%clk 0:03:00.7]}
5... Bf5 {[%clk 0:03:00.5]} 6. e3 {[%clk 0:03:01.2]} 6... e6 {[%clk 0:03:00.6]}
7. Bxc4 {[%clk 0:03:01.9]} 7... Bb4 {[%clk 0:03:01.4]} 8. O-O {[%clk 0:03:01.9]}
8... Nbd7 {[%clk 0:03:01.2]} 9. h3 {[%clk 0:03:02.5]} 9... h6 {[%clk 0:02:51.7]}
10. Qb3 {[%clk 0:03:02.2]} 10... Bd6 {[%clk 0:02:46.7]} 11. Bd2 {[%clk
0:02:35.7]} 11... O-O {[%clk 0:02:43.4]} 12. a5 {[%clk 0:02:16.5]} 12... b5
{[%clk 0:02:22.8]} 13. axb6 {[%clk 0:02:04.6]} 13... axb6 {[%clk 0:02:24.7]} 14.
Rfd1 {[%clk 0:01:40.8]} 14... Qc7 {[%clk 0:01:54.7]} 15. Be1 {[%clk 0:01:38.7]}
15... Rfb8 {[%clk 0:01:39.2]} 16. Nd2 {[%clk 0:01:38.1]} 16... Bg6 {[%clk
0:01:01.2]} 17. Rac1 {[%clk 0:01:38.2]} 17... Qb7 {[%clk 0:00:59.3]} 18. Be2
{[%clk 0:01:33.2]} 18... Nd5 {[%clk 0:00:55.7]} 19. e4 {[%clk 0:01:20]} 19...
Nf4 {[%clk 0:00:39.9]} 20. Bf1 {[%clk 0:01:19.9]} 20... e5 {[%clk 0:00:40.9]}
21. Nc4 {[%clk 0:01:12]} 21... Bc7 {[%clk 0:00:38.2]} 22. dxe5 {[%clk
0:00:47.7]} 22... Nxe5 {[%clk 0:00:37]} 23. Nd6 {[%clk 0:00:37.8]} 23... Bxd6
{[%clk 0:00:32]} 24. Rxd6 {[%clk 0:00:37.5]} 24... Rd8 {[%clk 0:00:26.9]} 25.
Rdd1 {[%clk 0:00:20.4]} 25... Nfd3 {[%clk 0:00:21.1]} 26. Ra1 {[%clk 0:00:17.3]}
26... Nxe1 {[%clk 0:00:21.6]} 27. Rxe1 {[%clk 0:00:17.3]} 27... Rxa1 {[%clk
0:00:12]} 28. Rxa1 {[%clk 0:00:17]} 28... Nd3 {[%clk 0:00:12.3]} 29. Rd1 {[%clk
0:00:14.7]} 29... Qc7 {[%clk 0:00:11.5]} 30. Rxd3 {[%clk 0:00:13.1]} 1-0

[Event "*** Titled Tuesday Blitz"]
[Site "Chess.com"]
[Date "2019.01.01"]
[Round "2"]
[White "SolidJ"]
[Black "BillForster"]
[Result "1-0"]
[WhiteElo "1674"]
[BlackElo "1718"]
[TimeControl "180+2"]
[EndTime "13:21:03 PST"]
[Termination "SolidJ won by resignation"]

1. e4 {[%clk 0:03:01.9]} 1... c5 {[%clk 0:02:59.6]} 2. Nf3 {[%clk 0:03:02.9]}
2... a6 {[%clk 0:03:00.4]} 3. d4 {[%clk 0:03:03]} 3... cxd4 {[%clk 0:03:01.3]}
4. Nxd4 {[%clk 0:03:04.4]} 4... e5 {[%clk 0:03:02.1]} 5. Nf3 {[%clk 0:03:05.5]}
5... Nf6 {[%clk 0:03:01]} 6. Nc3 {[%clk 0:02:58.2]} 6... Nc6 {[%clk 0:02:57.2]}
7. Bc4 {[%clk 0:02:56.6]} 7... Bb4 {[%clk 0:02:39.8]} 8. Bg5 {[%clk 0:02:50.1]}
8... d6 {[%clk 0:02:01.3]} 9. O-O {[%clk 0:02:34.9]} 9... Bxc3 {[%clk
0:02:01.4]} 10. bxc3 {[%clk 0:02:33.8]} 10... Be6 {[%clk 0:01:56.6]} 11. Bd5
{[%clk 0:01:19.4]} 11... Bxd5 {[%clk 0:01:32.5]} 12. exd5 {[%clk 0:01:18.5]}
12... Ne7 {[%clk 0:01:32.9]} 13. Bxf6 {[%clk 0:00:53.7]} 13... gxf6 {[%clk
0:01:31.8]} 14. Rb1 {[%clk 0:00:45.1]} 14... Qd7 {[%clk 0:01:30.9]} 15. Rb6
{[%clk 0:00:19.9]} 15... Rg8 {[%clk 0:01:28.6]} 16. Qb1 {[%clk 0:00:17.8]} 16...
Rb8 {[%clk 0:00:56.4]} 17. Nd2 {[%clk 0:00:17.9]} 17... Qh3 {[%clk 0:00:49.1]}
18. g3 {[%clk 0:00:18.2]} 18... Rg6 {[%clk 0:00:26.6]} 19. Rxb7 {[%clk
0:00:18.7]} 19... Rd8 {[%clk 0:00:23.2]} 20. Nf3 {[%clk 0:00:13.5]} 20... Rh6
{[%clk 0:00:21.7]} 21. Re1 {[%clk 0:00:14.2]} 21... Qh5 {[%clk 0:00:20.9]} 22.
Qd1 {[%clk 0:00:14.3]} 22... Nf5 {[%clk 0:00:18.9]} 23. Qd3 {[%clk 0:00:13.6]}
23... Ng7 {[%clk 0:00:16.7]} 24. Nh4 {[%clk 0:00:13.9]} 24... f5 {[%clk
0:00:14.8]} 25. Qxa6 {[%clk 0:00:14.5]} 25... Rg6 {[%clk 0:00:11.8]} 26. Qc6+
{[%clk 0:00:15.3]} 26... Kf8 {[%clk 0:00:09.2]} 27. Nxg6+ {[%clk 0:00:16.4]}
27... hxg6 {[%clk 0:00:09.5]} 28. Qc7 {[%clk 0:00:17.5]} 1-0

[Event "*** Titled Tuesday Blitz"]
[Site "Chess.com"]
[Date "2019.01.01"]
[Round "2"]
[White "Rakhmanov_Aleksandr"]
[Black "mazetofonias"]
[Result "1-0"]
[WhiteElo "2796"]
[BlackElo "2553"]
[TimeControl "180+2"]
[EndTime "13:21:07 PST"]
[Termination "Rakhmanov_Aleksandr won by resignation"]

1. c4 {[%clk 0:03:01.9]} 1... e5 {[%clk 0:02:54.8]} 2. Nf3 {[%clk 0:03:01.6]}
2... e4 {[%clk 0:02:53.2]} 3. Nd4 {[%clk 0:02:56.1]} 3... Nf6 {[%clk 0:02:54]}
4. Nc3 {[%clk 0:02:56.6]} 4... c6 {[%clk 0:02:53.6]} 5. g3 {[%clk 0:02:50.6]}
5... d5 {[%clk 0:02:54.1]} 6. cxd5 {[%clk 0:02:49.9]} 6... cxd5 {[%clk
0:02:54.2]} 7. d3 {[%clk 0:02:50.8]} 7... Bc5 {[%clk 0:02:54.7]} 8. Nb3 {[%clk
0:02:47.1]} 8... Bb4 {[%clk 0:02:55]} 9. Bg2 {[%clk 0:02:40.3]} 9... Nc6 {[%clk
0:02:48.6]} 10. O-O {[%clk 0:02:40.4]} 10... Qe7 {[%clk 0:02:47.4]} 11. Bg5
{[%clk 0:02:34.3]} 11... Bxc3 {[%clk 0:02:46.7]} 12. bxc3 {[%clk 0:02:34.8]}
12... Bf5 {[%clk 0:02:45.2]} 13. Be3 {[%clk 0:02:14.7]} 13... b6 {[%clk
0:02:42.6]} 14. Nd4 {[%clk 0:02:10]} 14... Nxd4 {[%clk 0:02:42.6]} 15. Qa4+
{[%clk 0:02:02.2]} 15... Bd7 {[%clk 0:02:39.9]} 16. Qxd4 {[%clk 0:02:02.9]}
16... O-O {[%clk 0:02:41.4]} 17. c4 {[%clk 0:01:52.8]} 17... exd3 {[%clk
0:02:40.5]} 18. exd3 {[%clk 0:01:52.2]} 18... Rad8 {[%clk 0:02:35.3]} 19. c5
{[%clk 0:01:49.5]} 19... Bf5 {[%clk 0:02:25]} 20. cxb6 {[%clk 0:01:46.3]} 20...
axb6 {[%clk 0:02:26.9]} 21. Rfb1 {[%clk 0:01:46.1]} 21... Qa3 {[%clk 0:02:25.6]}
22. Rb3 {[%clk 0:01:45.1]} 22... Qa8 {[%clk 0:02:15.7]} 23. Rxb6 {[%clk
0:01:42]} 23... Rfe8 {[%clk 0:02:14]} 24. Rxf6 {[%clk 0:01:37.4]} 24... gxf6
{[%clk 0:02:07.4]} 25. Qxf6 {[%clk 0:01:35.7]} 25... Rxe3 {[%clk 0:01:40.5]} 26.
Qg5+ {[%clk 0:01:29.6]} 26... Bg6 {[%clk 0:01:37.1]} 27. fxe3 {[%clk 0:01:20.9]}
27... Re8 {[%clk 0:01:35.2]} 28. h4 {[%clk 0:01:21.4]} 28... Qb8 {[%clk
0:00:44.7]} 29. d4 {[%clk 0:01:11.8]} 29... Qb2 {[%clk 0:00:39.1]} 30. Rf1
{[%clk 0:01:12.7]} 30... Qxa2 {[%clk 0:00:24]} 31. h5 {[%clk 0:01:10.8]} 31...
Qb3 {[%clk 0:00:23.9]} 32. hxg6 {[%clk 0:01:10.7]} 32... hxg6 {[%clk 0:00:25.8]}
33. Bxd5 {[%clk 0:01:10.5]} 33... Qxe3+ {[%clk 0:00:26.8]} 34. Qxe3 {[%clk
0:01:11.2]} 34... Rxe3 {[%clk 0:00:28.7]} 35. Bxf7+ {[%clk 0:01:07.5]} 35... Kg7
{[%clk 0:00:29.3]} 36. Kg2 {[%clk 0:01:06.8]} 36... Re2+ {[%clk 0:00:29]} 37.
Kh3 {[%clk 0:01:08.1]} 37... Rd2 {[%clk 0:00:28.7]} 38. d5 {[%clk 0:01:09.4]}
38... Kh6 {[%clk 0:00:29.4]} 39. Be6 {[%clk 0:01:10.5]} 39... Kg5 {[%clk
0:00:30.3]} 40. Rf4 {[%clk 0:01:11.1]} 40... Rd3 {[%clk 0:00:30.5]} 41. Rg4+
{[%clk 0:01:11.4]} 41... Kh5 {[%clk 0:00:31.3]} 42. Kg2 {[%clk 0:01:12.6]} 42...
Rd2+ {[%clk 0:00:27.8]} 43. Kf3 {[%clk 0:01:13.9]} 43... Rd3+ {[%clk 0:00:29.3]}
44. Ke4 {[%clk 0:01:15]} 44... Rd2 {[%clk 0:00:30.2]} 45. Ke5 {[%clk 0:01:16.4]}
45... Re2+ {[%clk 0:00:29.4]} 46. Re4 {[%clk 0:01:17.8]} 46... Rd2 {[%clk
0:00:30.5]} 47. d6 {[%clk 0:01:18.8]} 47... Kg5 {[%clk 0:00:31.5]} 48. d7 {[%clk
0:01:18.7]} 1-0

[Event "*** Titled Tuesday Blitz"]
[Site "Chess.com"]
[Date "2019.01.01"]
[Round "2"]
[White "vovachesss"]
[Black "VeraNebolsina"]
[Result "1/2-1/2"]
[WhiteElo "2499"]
[BlackElo "2350"]
[TimeControl "180+2"]
[EndTime "13:21:07 PST"]
[Termination "Game drawn by repetition"]

1. e4 {[%clk 0:03:01.9]} 1... c5 {[%clk 0:03:00.3]} 2. d4 {[%clk 0:02:59.9]}
2... cxd4 {[%clk 0:03:00.6]} 3. c3 {[%clk 0:03:01.5]} 3... Nf6 {[%clk
0:03:01.7]} 4. e5 {[%clk 0:03:02.6]} 4... Nd5 {[%clk 0:03:02.9]} 5. Nf3 {[%clk
0:03:04.1]} 5... Nc6 {[%clk 0:03:02]} 6. Bc4 {[%clk 0:03:02.2]} 6... Nb6 {[%clk
0:03:02.4]} 7. Bb3 {[%clk 0:03:03.4]} 7... d5 {[%clk 0:03:03.4]} 8. exd6 {[%clk
0:03:04.1]} 8... Qxd6 {[%clk 0:03:04.5]} 9. O-O {[%clk 0:03:04.3]} 9... Be6
{[%clk 0:03:05.4]} 10. Bxe6 {[%clk 0:03:01.9]} 10... Qxe6 {[%clk 0:03:06.6]} 11.
Re1 {[%clk 0:03:03.4]} 11... Qg4 {[%clk 0:02:58.1]} 12. h3 {[%clk 0:02:58.1]}
12... Qh5 {[%clk 0:02:56.8]} 13. cxd4 {[%clk 0:02:55.5]} 13... e6 {[%clk
0:02:50.3]} 14. Nc3 {[%clk 0:02:55.2]} 14... Be7 {[%clk 0:02:50.7]} 15. Bf4
{[%clk 0:02:17.4]} 15... O-O {[%clk 0:02:50.5]} 16. Qb3 {[%clk 0:02:13.9]} 16...
Rad8 {[%clk 0:02:37.3]} 17. Rad1 {[%clk 0:02:14.6]} 17... Bf6 {[%clk 0:02:30]}
18. Bc7 {[%clk 0:02:14.7]} 18... Nxd4 {[%clk 0:02:19.1]} 19. Nxd4 {[%clk
0:01:53.8]} 19... Rxd4 {[%clk 0:02:20]} 20. Bxb6 {[%clk 0:01:08.7]} 20... axb6
{[%clk 0:02:19.1]} 21. Qxb6 {[%clk 0:01:10.6]} 21... Rxd1 {[%clk 0:02:18.8]} 22.
Nxd1 {[%clk 0:01:12.5]} 22... Qd5 {[%clk 0:02:12.3]} 23. Ne3 {[%clk 0:01:02.5]}
23... Qxa2 {[%clk 0:02:10.4]} 24. Qxb7 {[%clk 0:00:48.3]} 24... Qxb2 {[%clk
0:02:10.7]} 25. Qe4 {[%clk 0:00:46.6]} 25... g6 {[%clk 0:02:05.4]} 26. Rb1
{[%clk 0:00:46.6]} 26... Qd4 {[%clk 0:02:04]} 27. Qf3 {[%clk 0:00:45.7]} 27...
Bg7 {[%clk 0:02:03.3]} 28. Rb7 {[%clk 0:00:46.1]} 28... Qf6 {[%clk 0:02:00.8]}
29. Qc6 {[%clk 0:00:32.3]} 29... h5 {[%clk 0:01:58.2]} 30. g3 {[%clk 0:00:32]}
30... Rd8 {[%clk 0:01:49.3]} 31. Kg2 {[%clk 0:00:23.3]} 31... Rd2 {[%clk
0:01:45.6]} 32. Qf3 {[%clk 0:00:13.6]} 32... Qxf3+ {[%clk 0:01:42.3]} 33. Kxf3
{[%clk 0:00:15.4]} 33... Bd4 {[%clk 0:01:36.3]} 34. Rc7 {[%clk 0:00:15.1]} 34...
Kg7 {[%clk 0:01:33.2]} 35. Rb7 {[%clk 0:00:15.4]} 35... Bxe3 {[%clk 0:01:29.5]}
36. Kxe3 {[%clk 0:00:16.6]} 36... Ra2 {[%clk 0:01:30.9]} 37. Rb3 {[%clk
0:00:16]} 37... Kf6 {[%clk 0:01:29.7]} 38. Kf3 {[%clk 0:00:17]} 38... Kf5 {[%clk
0:01:29.3]} 39. g4+ {[%clk 0:00:17.8]} 39... hxg4+ {[%clk 0:01:28.5]} 40. hxg4+
{[%clk 0:00:19]} 40... Kg5 {[%clk 0:01:26]} 41. Kg3 {[%clk 0:00:20.3]} 41... e5
{[%clk 0:01:24.7]} 42. Rb5 {[%clk 0:00:20.1]} 42... Kf6 {[%clk 0:01:24.1]} 43.
f3 {[%clk 0:00:20.3]} 43... Ra3 {[%clk 0:01:23.8]} 44. Kf2 {[%clk 0:00:21.5]}
44... Ra2+ {[%clk 0:01:22.5]} 45. Ke3 {[%clk 0:00:22.5]} 45... Ra3+ {[%clk
0:01:23.7]} 46. Ke4 {[%clk 0:00:23.5]} 46... Ra4+ {[%clk 0:01:24.9]} 47. Ke3
{[%clk 0:00:24.9]} 47... Ra3+ {[%clk 0:01:26]} 48. Ke4 {[%clk 0:00:26.2]} 48...
Ra4+ {[%clk 0:01:27.2]} 49. Ke3 {[%clk 0:00:27.7]} 49... Ra3+ {[%clk 0:01:26.8]}
1/2-1/2